fUSD/lending_fUSD_20250226
["ID","MTS","AMOUNT","RATE_DAILY","PERIOD"]
[354520333,1740552631980,-6190.46314924,0.00024692,30]
[354520334,1740552631994,-6921.60334819,0.00024692,30]
[354520335,1740552632007,-254.33428482,0.00024692,30]
[354520336,1740552632072,-4996.966294,0.00024692,30]
[354520403,1740552637604,-1025.0,0.00024692,30]
[354520404,1740552637616,-476.31949126,0.00024692,30]
[354520409,1740552637669,-867.20949215,0.00024692,30]
[354520411,1740552637680,-23441.18919972,0.00024692,30]
[354520412,1740552637691,-3590.51912612,0.00024692,30]
[354520413,1740552637702,-612.58427774,0.00024692,30]
[354520414,1740552637713,-31962.48411805,0.00024692,30]
[354520415,1740552637723,-18809.37159546,0.00024692,7]
[354520416,1740552637732,-267.7447365,0.00024692,30]
[354520417,1740552637741,-586.66980317,0.00024832,2]
[354520418,1740552637750,-261.22627299,0.000249,4]
[354520419,1740552637759,-500.0,0.00024932,2]
[354520420,1740552637768,-500.0,0.00024932,2]
[354520421,1740552637777,-500.0,0.00024932,2]
[354520422,1740552637786,-350.0,0.00025,2]
[354520423,1740552637795,-420.0,0.00026752,2]
[354520424,1740552637805,-150.37,0.00026849,2]
[354520425,1740552637814,-400.0,0.00027,2]
[354520426,1740552637824,-587.0,0.00028991,2]
[354520427,1740552637833,-1839.8177696,0.0002927,2]
[354520428,1740552637841,-2872.0,0.000297,3]
[354520429,1740552637850,-520.94,0.00031298,120]
[354520430,1740552637859,-823.0,0.00031417,2]
[354520431,1740552637868,-500.0,0.00033808,2]
[354520432,1740552637878,-1839.8177696,0.00033947,2]
[354520433,1740552637888,-1633.8899776,0.00034,30]
[354520434,1740552637899,-359.88969738,0.00034,30]
[354520436,1740552637910,-7690.1668913,0.00034,30]
[354520438,1740552637921,-5006.94884047,0.00034,30]
[354520440,1740552637932,-5200.0,0.00034,30]
[354520442,1740552637943,-1039.51657429,0.00034,30]
[354520445,1740552637954,-10395.52688323,0.00034,30]
[354520447,1740552637969,-4941.09052972,0.00034,30]
[354520449,1740552637980,-3511.95,0.00034,30]
[354520451,1740552637991,-1203.88782761,0.00034,30]
[354520454,1740552638002,-560.43787709,0.00034,30]
[354520456,1740552638014,-301.91055826,0.00034,30]
[354520458,1740552638025,-1893.07921605,0.00034,30]
[354520462,1740552638048,-6596.03655,0.00034,30]
[354520464,1740552638059,-49665.668577,0.00034,30]
[354520466,1740552638068,-322.94784645,0.00034046,2]
[354520468,1740552638080,-506.4,0.00034046,2]
[354520471,1740552638100,-322.65215355,0.00034046,2]
[354520473,1740552638109,-8526.72946511,0.00034253,2]
[354520475,1740552638118,-160.58,0.00034353,2]
[354520477,1740552638127,-520.94,0.0003521,120]
[354520479,1740552638138,-8526.72946504,0.00035492,2]
[354520481,1740552638148,-66818.78640157,0.00036,30]
[354520627,1740552639735,-1539.24906883,0.00036,30]
[354520629,1740552639747,-2935.17699216,0.00036,30]
[354520631,1740552639758,-648.29622244,0.00036,30]
[354520650,1740552640035,-2700.01562092,0.00036,30]
[354520651,1740552640048,-652.07046554,0.00036,30]
[354520652,1740552640059,-704.18835384,0.00036,30]
[354520665,1740552642941,-494.39,0.00036,30]
[354520673,1740552645099,-18315.70034756,0.00036,30]
[354520674,1740552645111,-5192.12652714,0.00036,30]
[354520675,1740552645120,-261.22627299,0.000364,7]
[354520676,1740552645129,-8526.72946504,0.00036731,2]
[354520677,1740552645139,-1277.0,0.00036895,2]
[354520678,1740552645148,-299.99,0.00037067,30]
[354520679,1740552645157,-8526.72946504,0.0003797,2]
[354520680,1740552645166,-21755.31628996,0.00038,30]
[354520681,1740552645177,-1628.1393338,0.00038,30]
[354520682,1740552645188,-9673.1036971,0.00038,30]
[354520683,1740552645228,-66943.44067914,0.00038,30]
[354520684,1740552645237,-151.0,0.00038,7]
[354520685,1740552645247,-520.94,0.00039123,120]
[354520686,1740552645256,-8526.72946504,0.00039209,2]
[354520687,1740552645266,-500.0,0.00039524,3]
[354520688,1740552645275,-175.66,0.00039699,2]
[354520689,1740552645284,-12189.65587817,0.0004,30]
[354520691,1740553831786,-250.0,0.00021,2]
[354520692,1740553831797,-300.0,0.00023,2]
[354520693,1740553831807,-151.84,0.00026849,2]
[354520694,1740553831816,-12387.0,0.00035,30]
[354520696,1740553831826,-181.74701488,0.0003878,30]
[354520698,1740553831835,-1793.66317156,0.0003878,2]
[354520700,1740553831845,-300.0,0.000391,2]
[354520702,1740553831854,-250.0,0.00039777,2]
[354520704,1740553831863,-394.98,0.00039842,120]
[354520706,1740553831872,-261.22627299,0.000399,8]
[354520707,1740553831881,-586.66980317,0.000399,5]
[354520709,1740553831890,-1186.524,0.00039999,56]
[354520711,1740553831899,-178.458,0.00039999,56]
[354520713,1740553831909,-150.0,0.00039999,4]
[354520715,1740553831918,-42972.1856614,0.0004,30]
[354520716,1740553831929,-3344.6017,0.0004,30]
[354520717,1740553831941,-6088.61886519,0.0004,30]
[354520718,1740553831952,-260.31111184,0.0004,30]
[354520719,1740553831963,-35144.6267834,0.0004,30]
[354520720,1740553831973,-3241.5904,0.0004,10]
[354520721,1740553831982,-2413.23131,0.0004,36]
[354520722,1740553831991,-355.66,0.00040242,2]
[354520723,1740553832071,-2000.0,0.00040252,120]
[354520724,1740553832083,-479.46,0.00040297,2]
[354520725,1740553832092,-15404.41103216,0.00040422,2]
[354520726,1740553832112,-474.18521572,0.00040422,2]
[354520727,1740553832123,-6236.05255663,0.00040422,2]
[354520728,1740553832135,-438.97982347,0.00040422,2]
[354520729,1740553832146,-533.22015203,0.00040422,2]
[354520731,1740553832158,-626.0,0.00040422,2]
[354520733,1740553832169,-366.18631718,0.00040422,2]
[354520735,1740553832181,-3719.4796415,0.00040422,2]
[354520736,1740553832204,-2084.09225182,0.00040422,2]
[354520739,1740553832227,-12564.70036532,0.00040422,2]
[354520740,1740553832236,-179.81,0.00040583,2]
[354520741,1740553832245,-200.0,0.00040593,2]
[354520742,1740553832254,-906.76,0.0004066,2]
[354520743,1740553832264,-1000.0,0.00040912,2]
[354520744,1740553832273,-172.26,0.00040952,2]
[354520745,1740553832282,-2000.0,0.00041295,120]
[354520746,1740553832291,-5403.54635592,0.00041347,15]
[354520747,1740553832300,-150.0,0.00041374,2]
[354520748,1740553832310,-158.63,0.00041447,2]
[354520749,1740553832319,-150.08,0.00041459,2]
[354520750,1740553832328,-173.6,0.00041567,2]
[354520751,1740553832337,-12620.11782177,0.00041632,2]
[354520752,1740553832346,-5403.54635589,0.00041738,15]
[354520753,1740553832356,-23900.0,0.00041743,2]
[354520754,1740553832365,-405.58,0.00041773,2]
[354520756,1740553832374,-1133.67,0.00041902,2]
[354520757,1740553832383,-405.58,0.00042102,2]
[354520758,1740553832392,-5403.54635589,0.00042129,15]
[354520759,1740553832401,-487.49,0.00042154,2]
[354520760,1740553832410,-42355.0,0.00042155,2]
[354520761,1740553832419,-405.58,0.00042432,2]
[354520762,1740553832429,-5403.54635589,0.00042521,15]
[354520763,1740553832438,-151.84,0.00042583,2]
[354520764,1740553832447,-405.58,0.00042762,2]
[354520765,1740553832456,-5403.54635589,0.00042912,15]
[354520766,1740553832466,-906.76,0.00042924,2]
[354520767,1740553832475,-520.94,0.00043035,120]
[354520768,1740553832484,-405.58,0.00043092,2]
[354520769,1740553832493,-5403.54635589,0.00043303,15]
[354520770,1740553832502,-405.58,0.00043422,2]
[354520771,1740553832512,-200.0,0.000436,15]
[354520772,1740553832521,-167.29,0.00043693,2]
[354520773,1740553832530,-5403.54635589,0.00043694,15]
[354520774,1740553832539,-500.0,0.000437,15]
[354520775,1740553832549,-315.44578672,0.00043715,2]
[354520776,1740553832558,-241.63456541,0.00043725,15]
[354520777,1740553832567,-1376.87739855,0.00043725,15]
[354520778,1740553832577,-338.3701892,0.00043735,12]
[354520779,1740553832586,-6680.7098,0.00043735,2]
[354520780,1740553832595,-11762.6587,0.00043735,2]
[354520781,1740553832604,-1645.0967,0.00043735,2]
[354520782,1740553832613,-1000.0,0.00043735,2]
[354520783,1740553832622,-405.58,0.00043751,2]
[354520784,1740553832632,-150.0,0.00043775,2]
[354520785,1740553832641,-700.0,0.000438,15]
[354520786,1740553832651,-500.0,0.00043814,31]
[354520787,1740553832660,-339.66405971,0.00043814,31]
[354520788,1740553832670,-119232.92254,0.00043815,4]
[354520789,1740553832679,-42082.2079552,0.00043815,4]
[354520790,1740553832689,-636.93571433,0.00043815,4]
[354520791,1740553832698,-152.344725,0.00043824,14]
[354520792,1740553832712,-284517.77887338,0.00043824,5]
[354520793,1740553832722,-151.0,0.00043825,14]
[354520794,1740553832732,-192.586064,0.00043825,14]
[354520795,1740553832741,-151.0,0.00043825,14]
[354520796,1740553832751,-151.0,0.00043825,14]
[354520797,1740553832761,-151.0,0.00043825,14]
[354520798,1740553832770,-151.0,0.00043825,14]
[354520799,1740553832780,-151.0,0.00043825,7]
[354520800,1740553832789,-151.0,0.00043825,7]
[354520801,1740553832799,-151.0,0.00043825,7]
[354520802,1740553832808,-151.0,0.00043825,7]
[354520803,1740553832818,-151.0,0.00043825,7]
[354520804,1740553832827,-151.0,0.00043825,7]
[354520805,1740553832837,-151.0,0.00043825,7]
[354520806,1740553832846,-151.0,0.00043825,7]
[354520807,1740553832855,-248.66008,0.00043825,7]
[354520808,1740553832865,-151.0,0.00043825,14]
[354520809,1740553832875,-151.0,0.00043825,14]
[354520810,1740553832885,-151.0,0.00043825,14]
[354520811,1740553832895,-151.0,0.00043825,14]
[354520812,1740553832904,-151.0,0.00043825,14]
[354520813,1740553832914,-151.0,0.00043825,14]
[354520814,1740553832923,-153.893052,0.00043825,14]
[354520815,1740553832933,-70137.0132587,0.00043825,4]
[354520816,1740553832942,-8280.16428629,0.00043825,4]
[354520817,1740553832952,-172.7856108,0.00043834,31]
[354520818,1740553832962,-201.68752266,0.00043834,31]
[354520819,1740553832971,-500.0,0.00043834,31]
[354520820,1740553832980,-500.0,0.00043834,31]
[354520821,1740553832989,-500.0,0.00043834,31]
[354520822,1740553832998,-500.0,0.00043834,31]
[354520823,1740553833007,-500.0,0.00043834,31]
[354520824,1740553833017,-500.0,0.00043834,31]
[354520825,1740553833026,-500.0,0.00043834,31]
[354520826,1740553833035,-500.0,0.00043834,31]
[354520827,1740553833044,-500.0,0.00043834,31]
[354520828,1740553833053,-500.0,0.00043834,31]
[354520829,1740553833062,-500.0,0.00043834,31]
[354520830,1740553833071,-220.38452865,0.00043834,31]
[354520831,1740553833082,-500.0,0.00043834,31]
[354520832,1740553833091,-500.0,0.00043834,31]
[354520833,1740553833101,-500.0,0.00043834,31]
[354520834,1740553833110,-500.0,0.00043834,31]
[354520835,1740553833119,-500.0,0.00043834,31]
[354520836,1740553833129,-300.0,0.00043834,31]
[354520837,1740553833138,-3066.24,0.00043835,120]
[354520838,1740553833148,-3803.47,0.00043835,120]
[354520839,1740553833157,-2851.22,0.00043835,120]
[354520840,1740553833166,-1427.33,0.00043835,120]
[354520841,1740553833175,-2894.64,0.00043835,120]
[354520842,1740553833184,-500.0,0.00043835,120]
[354520843,1740553833193,-500.0,0.00043835,120]
[354520844,1740553833203,-500.0,0.00043835,120]
[354520845,1740553833213,-500.0,0.00043835,120]
[354520846,1740553833223,-268.71795222,0.00043835,120]
[354520847,1740553833232,-644.54305717,0.00043835,120]
[354520848,1740553833242,-718.46,0.00043835,120]
[354520849,1740553833251,-151.0,0.00043835,14]
[354520850,1740553833262,-632.19,0.00043835,120]
[354520851,1740553833271,-154.982803,0.00043835,14]
[354520852,1740553833281,-380.92226794,0.00043835,120]
[354520853,1740553833291,-2189.47,0.00043835,120]
[354520854,1740553833300,-500.0,0.00043835,120]
[354520855,1740553833310,-748.18,0.00043835,120]
[354520856,1740553833319,-500.0,0.00043835,120]
[354520857,1740553833328,-2392.59,0.00043835,120]
[354520858,1740553833337,-500.0,0.00043835,120]
[354520859,1740553833347,-509.2923773,0.00043835,120]
[354520860,1740553833357,-500.0,0.00043835,120]
[354520861,1740553833366,-1488.93,0.00043835,120]
[354520862,1740553833375,-443.80526103,0.00043835,120]
[354520863,1740553833385,-1052.33,0.00043835,120]
[354520864,1740553833394,-500.0,0.00043835,120]
[354520865,1740553833403,-1363.24,0.00043835,120]
[354520866,1740553833413,-500.0,0.00043835,120]
[354520867,1740553833422,-628.41441398,0.00043835,120]
[354520868,1740553833432,-500.0,0.00043835,120]
[354520869,1740553833441,-500.0,0.00043835,120]
[354520870,1740553833451,-502.81300075,0.00043835,120]
[354520871,1740553833460,-500.0,0.00043835,120]
[354520872,1740553833470,-501.46947953,0.00043835,120]
[354520873,1740553833479,-2923.35,0.00043835,120]
[354520874,1740553833489,-500.0,0.00043835,120]
[354520875,1740553833499,-1723.31,0.00043835,120]
[354520876,1740553833508,-500.0,0.00043835,120]
[354520877,1740553833517,-500.0,0.00043835,120]
[354520878,1740553833526,-502.51470759,0.00043835,120]
[354520879,1740553833536,-500.0,0.00043835,120]
[354520880,1740553833546,-500.0,0.00043835,120]
[354520881,1740553833556,-500.0,0.00043835,120]
[354520882,1740553833566,-2692.66,0.00043835,120]
[354520883,1740553833576,-502.48236369,0.00043835,120]
[354520884,1740553833585,-519.07392315,0.00043835,120]
[354520885,1740553833595,-500.0,0.00043835,120]
[354520886,1740553833605,-2036.92,0.00043835,120]
[354520887,1740553833615,-500.0,0.00043835,120]
[354520888,1740553833624,-500.0,0.00043835,120]
[354520889,1740553833634,-503.07085594,0.00043835,120]
[354520890,1740553833643,-522.39,0.00043835,120]
[354520891,1740553833652,-500.0,0.00043835,120]
[354520892,1740553833661,-500.0,0.00043835,120]
[354520893,1740553833671,-151.0,0.00043835,7]
[354520894,1740553833681,-500.0,0.00043835,120]
[354520895,1740553833690,-500.0,0.00043835,120]
[354520896,1740553833700,-502.30375988,0.00043835,120]
[354520897,1740553833715,-502.50015358,0.00043835,120]
[354520898,1740553833724,-659.89,0.00043835,120]
[354520899,1740553833734,-500.0,0.00043835,120]
[354520900,1740553833743,-2821.22,0.00043835,120]
[354520901,1740553833754,-500.0,0.00043835,120]
[354520902,1740553833764,-500.0,0.00043835,120]
[354520903,1740553833774,-1347.57,0.00043835,120]
[354520904,1740553833784,-522.21977313,0.00043835,120]
[354520905,1740553833794,-500.0,0.00043835,120]
[354520906,1740553833804,-502.09747268,0.00043835,120]
[354520907,1740553833813,-500.0,0.00043835,120]
[354520908,1740553833823,-500.0,0.00043835,120]
[354520909,1740553833833,-500.0,0.00043835,120]
[354520910,1740553833844,-1677.34,0.00043835,120]
[354520911,1740553833857,-500.0,0.00043835,120]
[354520912,1740553833870,-500.0,0.00043835,120]
[354520913,1740553833881,-500.0,0.00043835,120]
[354520914,1740553833893,-1191.14,0.00043835,120]
[354520915,1740553833906,-500.0,0.00043835,120]
[354520916,1740553833918,-868.37,0.00043835,120]
[354520917,1740553833930,-500.0,0.00043835,120]
[354520918,1740553833940,-645.17,0.00043835,120]
[354520919,1740553833950,-500.0,0.00043835,120]
[354520920,1740553833959,-501.43744775,0.00043835,120]
[354520921,1740553833969,-1897.01,0.00043835,120]
[354520922,1740553833979,-2105.0,0.00043835,120]
[354520923,1740553833988,-337.45402729,0.00043835,120]
[354520924,1740553833999,-500.0,0.00043835,120]
[354520925,1740553834009,-2559.35,0.00043835,30]
[354520926,1740553834018,-500.0,0.00043835,120]
[354520927,1740553834027,-502.86,0.00043835,120]
[354520928,1740553834037,-1442.69,0.00043835,120]
[354520929,1740553834046,-716.04,0.00043835,120]
[354520930,1740553834055,-500.0,0.00043835,120]
[354520931,1740553834065,-500.0,0.00043835,120]
[354520932,1740553834074,-500.0,0.00043835,120]
[354520933,1740553834084,-500.0,0.00043835,120]
[354520934,1740553834093,-1977.77,0.00043835,120]
[354520935,1740553834102,-4217.58,0.00043835,120]
[354520936,1740553834112,-500.0,0.00043835,120]
[354520937,1740553834121,-686.37,0.00043835,120]
[354520938,1740553834131,-500.0,0.00043835,120]
[354520939,1740553834140,-316.48624862,0.00043835,120]
[354520940,1740553834149,-500.0,0.00043835,120]
[354520941,1740553834159,-500.0,0.00043835,120]
[354520942,1740553834168,-503.96509475,0.00043835,120]
[354520943,1740553834178,-500.0,0.00043835,120]
[354520944,1740553834187,-530.45606688,0.00043835,120]
[354520945,1740553834196,-1419.73,0.00043835,120]
[354520946,1740553834205,-1022.79,0.00043835,120]
[354520947,1740553834216,-500.0,0.00043835,120]
[354520948,1740553834225,-500.0,0.00043835,120]
[354520949,1740553834235,-530.34799012,0.00043835,120]
[354520950,1740553834244,-500.0,0.00043835,120]
[354520951,1740553834253,-3272.73,0.00043835,120]
[354520952,1740553834262,-487.71021886,0.00043835,120]
[354520953,1740553834281,-1326.13978114,0.00043835,120]
[354520954,1740553834290,-500.0,0.00043835,120]
[354520955,1740553834299,-500.0,0.00043835,120]
[354520956,1740553834308,-500.0,0.00043835,120]
[354520957,1740553834317,-3589.89,0.00043835,120]
[354520958,1740553834326,-500.0,0.00043835,120]
[354520959,1740553834336,-638.82,0.00043835,120]
[354520960,1740553834345,-504.24022057,0.00043835,120]
[354520961,1740553834354,-568.21,0.00043835,120]
[354520962,1740553834363,-500.0,0.00043835,120]
[354520963,1740553834372,-2377.63,0.00043835,120]
[354520964,1740553834381,-503.2667122,0.00043835,120]
[354520965,1740553834390,-2686.36,0.00043835,120]
[354520966,1740553834399,-503.29,0.00043835,120]
[354520967,1740553834408,-1098.365009,0.00043835,120]
[354520968,1740553834418,-500.0,0.00043835,120]
[354520969,1740553834427,-517.59222113,0.00043835,120]
[354520970,1740553834437,-505.9577513,0.00043835,120]
[354520971,1740553834446,-500.0,0.00043835,120]
[354520972,1740553834456,-571.03,0.00043835,120]
[354520973,1740553834466,-503.71856544,0.00043835,120]
[354520974,1740553834477,-431.19075206,0.00043835,120]
[354520975,1740553834494,-68.80924794,0.00043835,120]
[354520976,1740553834504,-500.0,0.00043835,120]
[354520977,1740553834513,-500.0,0.00043835,120]
[354520978,1740553834523,-503.40706518,0.00043835,120]
[354520979,1740553834532,-1560.12,0.00043835,120]
[354520980,1740553834541,-503.03086758,0.00043835,120]
[354520981,1740553834551,-3130.08,0.00043835,120]
[354520982,1740553834560,-500.0,0.00043835,120]
[354520983,1740553834569,-503.91392196,0.00043835,120]
[354520984,1740553834578,-507.44,0.00043835,120]
[354520985,1740553834587,-500.0,0.00043835,120]
[354520986,1740553834597,-780.77,0.00043835,120]
[354520987,1740553834606,-502.6031329,0.00043835,120]
[354520988,1740553834615,-500.0,0.00043835,120]
[354520989,1740553834624,-1194.14,0.00043835,120]
[354520990,1740553834633,-2929.226483,0.00043835,120]
[354520991,1740553834642,-500.0,0.00043835,120]
[354520992,1740553834651,-3727.8,0.00043835,120]
[354520993,1740553834660,-500.0,0.00043835,120]
[354520994,1740553834669,-187.13063,0.00043835,120]
[354520995,1740553834679,-1624.71,0.00043835,120]
[354520996,1740553834688,-660.05,0.00043835,120]
[354520997,1740553834697,-500.0,0.00043835,120]
[354520998,1740553834709,-500.0,0.00043835,120]
[354520999,1740553834719,-500.0,0.00043835,120]
[354521000,1740553834728,-464.56176965,0.00043835,120]
[354521001,1740553834738,-1305.49,0.00043835,120]
[354521002,1740553834749,-2661.11,0.00043835,120]
[354521003,1740553834758,-1313.06,0.00043835,120]
[354521004,1740553834767,-500.0,0.00043835,120]
[354521005,1740553834777,-500.0,0.00043835,120]
[354521006,1740553834787,-501.72577133,0.00043835,120]
[354521007,1740553834797,-3000.3,0.00043835,120]
[354521008,1740553834806,-500.0,0.00043835,120]
[354521009,1740553834816,-813.38,0.00043835,120]
[354521010,1740553834825,-504.31806188,0.00043835,120]
[354521011,1740553834834,-3537.05,0.00043835,120]
[354521012,1740553834844,-1377.77,0.00043835,120]
[354521013,1740553834853,-500.0,0.00043835,120]
[354521014,1740553834863,-161.508417,0.00043835,120]
[354521015,1740553834873,-1009.02,0.00043835,120]
[354521016,1740553834882,-500.0,0.00043835,120]
[354521017,1740553834891,-500.0,0.00043835,120]
[354521018,1740553834901,-502.93071308,0.00043835,120]
[354521019,1740553834910,-499.99714719,0.00043835,120]
[354521020,1740553834920,-500.0,0.00043835,120]
[354521021,1740553834930,-1333.65,0.00043835,120]
[354521022,1740553834939,-850.33,0.00043835,30]
[354521023,1740553834949,-329.15916433,0.00043835,120]
[354521024,1740553834959,-500.0,0.00043835,120]
[354521025,1740553834968,-500.0,0.00043835,120]
[354521026,1740553834977,-3480.61,0.00043835,120]
[354521027,1740553834987,-519.78604868,0.00043835,120]
[354521028,1740553834996,-779.18,0.00043835,120]
[354521029,1740553835006,-502.21249437,0.00043835,120]
[354521030,1740553835015,-375.8247807,0.00043835,120]
[354521031,1740553835024,-500.0,0.00043835,120]
[354521032,1740553835035,-960.4,0.00043835,120]
[354521033,1740553835044,-500.0,0.00043835,120]
[354521034,1740553835053,-502.86085126,0.00043835,120]
[354521035,1740553835062,-2083.54,0.00043835,120]
[354521036,1740553835071,-503.83545773,0.00043835,120]
[354521037,1740553835080,-500.0,0.00043835,120]
[354521038,1740553835090,-1092.05,0.00043835,120]
[354521039,1740553835099,-500.0,0.00043835,120]
[354521040,1740553835108,-500.0,0.00043835,120]
[354521041,1740553835117,-3330.94,0.00043835,120]
[354521042,1740553835126,-2481.83,0.00043835,120]
[354521043,1740553835136,-502.56666022,0.00043835,120]
[354521044,1740553835145,-500.0,0.00043835,120]
[354521045,1740553835154,-767.81,0.00043835,120]
[354521046,1740553835163,-812.51,0.00043835,120]
[354521047,1740553835171,-527.89,0.00043835,120]
[354521048,1740553835180,-2844.89,0.00043835,120]
[354521049,1740553835189,-500.0,0.00043835,120]
[354521050,1740553835198,-1453.55,0.00043835,120]
[354521051,1740553835207,-1157.2,0.00043835,120]
[354521052,1740553835217,-1835.9,0.00043835,120]
[354521053,1740553835226,-744.35,0.00043835,120]
[354521054,1740553835234,-876.76,0.00043835,120]
[354521055,1740553835243,-1000.0,0.00043835,120]
[354521056,1740553835252,-1000.0,0.00043835,120]
[354521057,1740553835261,-502.5804252,0.00043835,120]
[354521058,1740553835271,-500.0,0.00043835,120]
[354521059,1740553835280,-708.15,0.00043835,120]
[354521060,1740553835289,-1752.71,0.00043835,120]
[354521061,1740553835298,-882.38,0.00043835,120]
[354521062,1740553835308,-500.0,0.00043835,120]
[354521063,1740553835317,-500.0,0.00043835,120]
[354521064,1740553835327,-904.95,0.00043835,120]
[354521065,1740553835336,-500.0,0.00043835,7]
[354521066,1740553835345,-1242.19,0.00043835,120]
[354521067,1740553835355,-1965.64,0.00043835,120]
[354521068,1740553835364,-514.44861426,0.00043835,120]
[354521069,1740553835374,-500.0,0.00043835,120]
[354521070,1740553835383,-1407.76,0.00043835,120]
[354521071,1740553835392,-1183.54,0.00043835,120]
[354521072,1740553835401,-500.0,0.00043835,120]
[354521073,1740553835410,-500.0,0.00043835,120]
[354521074,1740553835420,-500.0,0.00043835,120]
[354521075,1740553835429,-500.0,0.00043835,120]
[354521076,1740553835438,-2255.75,0.00043835,120]
[354521077,1740553835447,-500.0,0.00043835,120]
[354521078,1740553835456,-1940.4,0.00043835,120]
[354521079,1740553835465,-306.859928,0.00043835,14]
[354521080,1740553835474,-152.251858,0.00043835,14]
[354521081,1740553835483,-306.859928,0.00043835,14]
[354521082,1740553835492,-306.859928,0.00043835,14]
[354521083,1740553835501,-791.07,0.00043835,120]
[354521084,1740553835509,-306.859928,0.00043835,14]
[354521085,1740553835518,-500.0,0.00043835,120]
[354521086,1740553835527,-502.36,0.00043835,120]
[354521087,1740553835537,-500.0,0.00043835,120]
[354521088,1740553835545,-306.859928,0.00043835,14]
[354521089,1740553835554,-649.41,0.00043835,120]
[354521090,1740553835563,-306.859928,0.00043835,14]
[354521091,1740553835572,-306.859928,0.00043835,14]
[354521092,1740553835581,-306.859928,0.00043835,14]
[354521093,1740553835590,-500.0,0.00043835,120]
[354521094,1740553835599,-500.0,0.00043835,120]
[354521095,1740553835609,-500.0,0.00043835,120]
[354521096,1740553835618,-500.0,0.00043835,120]
[354521097,1740553835629,-151.0,0.00043835,14]
[354521098,1740553835638,-152.242892,0.00043835,14]
[354521099,1740553835647,-500.0,0.00043835,120]
[354521100,1740553835656,-1537.63,0.00043835,120]
[354521101,1740553835665,-500.0,0.00043835,120]
[354521102,1740553835674,-694.58,0.00043835,120]
[354521103,1740553835683,-500.0,0.00043835,120]
[354521104,1740553835692,-500.0,0.00043835,120]
[354521105,1740553835702,-1715.04,0.00043835,120]
[354521106,1740553835715,-743.57,0.00043835,120]
[354521107,1740553835724,-501.37958675,0.00043835,120]
[354521108,1740553835733,-500.0,0.00043835,120]
[354521109,1740553835743,-576.80605357,0.00043835,120]
[354521110,1740553835753,-1634.2,0.00043835,120]
[354521111,1740553835762,-500.0,0.00043835,120]
[354521112,1740553835772,-500.0,0.00043835,120]
[354521113,1740553835782,-500.0,0.00043835,120]
[354521114,1740553835792,-1583.21,0.00043835,120]
[354521115,1740553835803,-200.0,0.00043835,7]
[354521116,1740553835817,-977.87,0.00043835,120]
[354521117,1740553835829,-1450.72,0.00043835,120]
[354521118,1740553835839,-500.0,0.00043835,120]
[354521119,1740553835850,-500.7494899,0.00043835,120]
[354521120,1740553835860,-500.0,0.00043835,120]
[354521121,1740553835870,-554.49,0.00043835,120]
[354521122,1740553835881,-500.0,0.00043835,120]
[354521123,1740553835891,-500.0,0.00043835,120]
[354521124,1740553835902,-3232.04,0.00043835,120]
[354521125,1740553835912,-500.0,0.00043835,120]
[354521126,1740553835923,-500.0,0.00043835,120]
[354521127,1740553835932,-902.42,0.00043835,120]
[354521128,1740553835942,-2298.93,0.00043835,120]
[354521129,1740553835952,-866.02,0.00043835,120]
[354521130,1740553835964,-1182.51,0.00043835,120]